bitfinex-derivatives/quotes_BNBF0:USTF0_20260114
["timestamp","ask_amount","ask_price","bid_price","bid_amount"]
[1768401441499,0.76204682,939.08,936.78,2.620663]
[1768401441697,0.76204682,939.07,936.81,2.620663]
[1768401441899,1.631,939.31,936.81,2.620663]
[1768401442098,0.75902971,939.3,936.81,2.620663]
[1768401442396,0.75902971,939.29,936.87,2.620663]
[1768401442597,0.75902971,939.28,936.87,2.620663]
[1768401442802,0.75902971,939.27,936.89,2.620663]
[1768401442997,0.75902971,939.26,936.89,2.620663]
[1768401443200,0.75902971,939.25,936.89,2.620663]
[1768401443398,0.75902971,939.24,936.9,2.620663]
[1768401443603,0.75902971,939.23,936.9,2.620663]
[1768401443898,0.75902971,939.22,936.9,2.620663]
[1768401444099,0.75902971,939.21,936.9,2.620663]
[1768401444302,0.18535138,939.85,936.99,2.620663]
[1768401444496,0.75926725,939.84,936.99,2.620663]
[1768401444702,0.75926725,939.83,936.99,2.620663]
[1768401445002,0.75926725,939.82,937.07,2.620663]
[1768401445302,0.75926725,939.81,937.07,2.620663]
[1768401445500,0.75926725,939.8,937.1,2.620663]
[1768401445702,0.75926725,939.79,937.1,2.620663]
[1768401445901,0.75926725,939.78,937.1,2.620663]
[1768401446102,0.75926725,939.77,937.1,2.620663]
[1768401446299,0.75926725,939.76,937.1,2.620663]
[1768401446506,0.75926725,939.75,936.98,2.620663]
[1768401446700,0.75926725,939.74,936.98,2.620663]
[1768401446901,0.75926725,939.73,936.91,2.620663]
[1768401447102,0.75926725,939.72,936.91,2.620663]
[1768401447303,0.75926725,939.71,936.91,2.620663]
[1768401447502,0.75926725,939.71,936.64,3.6689282]
[1768401447503,0.75926725,939.7,936.94,2.620663]
[1768401447702,0.75926725,939.69,936.94,2.620663]
[1768401447904,0.75926725,939.68,936.96,2.620663]
[1768401448102,0.75926725,939.67,936.96,2.620663]
[1768401448405,0.75926725,939.66,936.97,2.620663]
[1768401448606,0.75926725,939.65,936.97,2.620663]
[1768401448802,0.75926725,939.64,936.97,2.620663]
[1768401449105,0.75926725,939.63,936.95,2.620663]
[1768401449301,0.75926725,939.62,936.95,2.620663]
[1768401449505,0.75926725,939.61,936.95,2.620663]
[1768401449706,0.75926725,939.6,936.95,2.620663]
[1768401449905,0.75926725,939.59,936.95,2.620663]
[1768401450105,0.75926725,939.58,936.95,2.620663]
[1768401450304,0.75926725,939.57,936.95,2.620663]
[1768401450603,0.75926725,939.56,936.97,2.620663]
[1768401450803,0.75926725,939.55,936.97,2.620663]
[1768401451103,0.75926725,939.54,936.97,2.620663]
[1768401451306,0.75926725,939.53,936.97,2.620663]
[1768401451602,0.75926725,939.52,936.99,2.620663]
[1768401451803,0.75926725,939.51,936.99,2.620663]
[1768401452005,0.75926725,939.5,936.99,2.620663]
[1768401452207,0.75926725,939.49,936.99,2.620663]
[1768401452505,0.75926725,939.48,937.03,2.620663]
[1768401452707,0.75926725,939.47,937.03,2.620663]
[1768401452903,0.75926725,939.46,937.03,2.620663]
[1768401453203,0.75926725,939.45,937.03,2.620663]
[1768401453404,0.75926725,939.44,937.03,2.620663]
[1768401453607,0.75926725,939.43,937.01,2.620663]
[1768401453808,0.75926725,939.42,937.01,2.620663]
[1768401454106,0.75926725,939.41,936.96,2.620663]
[1768401454308,0.75926725,939.4,936.96,2.620663]
[1768401454606,1.977,939.74,936.13,5.241326]
[1768401454607,0.75926725,939.39,936.94,2.620663]
[1768401454807,0.75926725,939.38,936.94,2.620663]
[1768401455107,0.75926725,939.37,936.94,2.620663]
[1768401455303,0.75926725,939.36,936.94,2.620663]
[1768401455506,0.75926725,939.35,936.94,2.620663]
[1768401455706,0.75926725,939.34,936.94,2.620663]
[1768401455904,0.75926725,939.33,936.94,2.620663]
[1768401456109,0.75926725,939.32,936.94,2.620663]
[1768401456304,0.75926725,939.31,936.94,2.620663]
[1768401456508,0.75926725,939.3,936.94,2.620663]
[1768401456709,0.75926725,939.29,936.94,2.620663]
[1768401456906,0.75926725,939.28,936.94,2.620663]
[1768401457205,0.75926725,939.28,936.6,3.6689282]
[1768401457206,0.75926725,939.27,936.93,2.620663]
[1768401457413,0.75926725,939.26,936.93,2.620663]
[1768401457609,0.75926725,939.25,936.93,2.620663]
[1768401457810,0.75926725,939.24,936.94,2.620663]
[1768401458109,1.977,939.74,936.94,2.620663]
[1768401458307,0.75835027,939.73,936.94,2.620663]
[1768401458604,0.75835027,939.72,936.94,2.620663]
[1768401458806,0.75835027,939.71,936.94,2.620663]
[1768401459007,0.75835027,939.7,936.94,2.620663]
[1768401459206,0.75835027,939.69,936.94,2.620663]
[1768401459405,0.75835027,939.68,936.94,2.620663]
[1768401459608,0.75835027,939.67,936.94,2.620663]
[1768401459804,0.75835027,939.66,936.94,2.620663]
[1768401460107,0.75835027,939.65,936.94,2.620663]
[1768401460306,0.75835027,939.64,936.95,2.620663]
[1768401460505,0.75835027,939.63,936.95,2.620663]
[1768401460704,0.75835027,939.62,936.95,2.620663]
[1768401460906,0.75835027,939.61,936.95,2.620663]
[1768401461105,0.75835027,939.6,936.95,2.620663]
[1768401461405,0.75835027,939.59,936.95,2.620663]
[1768401461606,0.75835027,939.58,936.95,2.620663]
[1768401461809,0.75835027,939.57,936.95,2.620663]
[1768401462010,0.75835027,939.56,936.95,2.620663]
[1768401462309,0.75835027,939.55,936.95,2.620663]
[1768401462509,1.977,939.74,936.62,3.6689282]
[1768401462510,0.75835027,939.54,936.97,2.620663]
[1768401462805,0.75835027,939.53,936.97,2.620663]
[1768401463006,0.75835027,939.52,936.97,2.620663]
[1768401463207,0.75835027,939.51,936.97,2.620663]
[1768401463505,0.75835027,939.5,937.01,2.620663]
[1768401463712,0.75874916,939.49,937.01,2.620663]
[1768401463911,0.75874916,939.48,937.01,2.620663]
[1768401464111,0.75874916,939.47,937.01,2.620663]
[1768401464311,0.75874916,939.46,937.01,2.620663]
[1768401464510,0.75874916,939.45,937.01,2.620663]
[1768401464709,0.75874916,939.44,937.04,2.620663]
[1768401465010,0.75874916,939.43,937.04,2.620663]
[1768401465211,0.75874916,939.42,937.16,2.620663]
[1768401465512,0.75874916,939.41,937.16,2.620663]
[1768401465708,0.75874916,939.4,937.17,2.620663]
[1768401465912,0.75874916,939.39,937.17,2.620663]
[1768401466209,0.75874916,939.38,937.17,2.620663]
[1768401466407,0.75874916,939.37,937.17,2.620663]
[1768401466611,0.75874916,939.36,937.19,2.620663]
[1768401466812,0.75874916,939.35,937.19,2.620663]
[1768401467112,0.75874916,939.34,937.19,2.620663]
[1768401467308,0.75874916,939.33,937.19,2.620663]
[1768401467512,0.75874916,939.32,937.11,2.620663]
[1768401467713,0.75874916,939.31,937.11,2.620663]
[1768401467909,0.75874916,939.3,937.11,2.620663]
[1768401468112,0.75874916,939.29,937.01,2.620663]
[1768401468312,0.75874916,939.28,937.01,2.620663]
[1768401468514,0.75874916,939.27,936.92,2.620663]
[1768401468809,0.75874916,939.26,936.92,2.620663]
[1768401469014,0.75874916,939.25,936.83,2.620663]
[1768401469211,0.75874916,939.24,936.83,2.620663]
[1768401469411,0.75874916,939.23,936.83,2.620663]
[1768401469613,0.75874916,939.22,936.86,2.620663]
[1768401469811,0.75874916,939.21,936.86,2.620663]
[1768401470012,0.75874916,939.2,936.83,2.620663]
[1768401470316,0.75874916,939.19,936.83,2.620663]
[1768401470616,0.75874916,939.18,936.76,2.620663]
[1768401470812,0.75874916,939.17,936.76,2.620663]
[1768401471017,0.75874916,939.16,936.76,2.620663]
[1768401471318,0.75874916,939.15,936.76,2.620663]
[1768401471515,0.75874916,939.14,936.8,2.620663]
[1768401471716,0.75874916,939.13,936.8,2.620663]
[1768401471912,0.75874916,939.12,936.8,2.620663]
[1768401472112,0.76387611,939.11,936.8,2.620663]
[1768401472317,0.76387611,939.1,936.8,2.620663]
[1768401472513,0.76387611,939.09,936.82,2.620663]
[1768401472714,0.76387611,939.08,936.82,2.620663]
[1768401472920,0.76387611,939.07,936.82,2.620663]
[1768401473118,0.76387611,939.06,936.82,2.620663]
[1768401473315,0.76387611,939.05,936.82,2.620663]
[1768401473618,0.76387611,939.04,936.92,2.620663]
[1768401473819,0.76387611,939.03,936.92,2.620663]
[1768401474118,0.76387611,939.02,936.92,2.620663]
[1768401474319,0.76387611,939.01,936.92,2.620663]
[1768401474516,0.76387611,939.0,936.92,2.620663]
[1768401474722,0.76387611,938.99,936.92,2.620663]
[1768401474922,0.76387611,938.98,936.92,2.620663]
[1768401475220,0.76387611,938.97,936.92,2.620663]
[1768401475420,0.76387611,938.96,936.92,2.620663]
[1768401475621,0.76387611,938.95,936.9,2.620663]
[1768401475822,0.76387611,938.94,936.9,2.620663]
[1768401476017,0.76387611,938.93,936.9,2.620663]
[1768401476218,0.76387611,938.92,936.89,2.620663]
[1768401476422,0.76387611,938.91,936.89,2.620663]
[1768401476619,0.76387611,938.9,936.88,2.620663]
[1768401476819,0.76387611,938.89,936.88,2.620663]
[1768401477023,0.76387611,938.88,936.88,2.620663]
[1768401477224,0.76387611,938.87,936.77,2.620663]
[1768401477424,0.76387611,938.86,936.77,2.620663]
[1768401477624,0.76387611,938.85,936.77,2.620663]
[1768401477924,0.76387611,938.85,936.47,3.6689282]
[1768401477925,0.76387611,938.84,936.71,2.620663]
[1768401478121,0.76387611,938.83,936.71,2.620663]
[1768401478325,0.76387611,938.82,936.71,2.620663]
[1768401478519,0.76387611,938.81,936.71,2.620663]
[1768401478721,0.76387611,938.8,936.72,2.620663]
[1768401478926,0.76387611,938.79,936.72,2.620663]
[1768401479226,0.76387611,938.78,936.74,2.620663]
[1768401479526,0.76387611,938.77,936.74,2.620663]
[1768401479822,0.76387611,938.76,936.74,2.620663]
[1768401480022,0.76387611,938.75,936.74,2.620663]
[1768401480327,0.76387611,938.74,936.72,2.620663]
[1768401480525,0.76387611,938.73,936.72,2.620663]
[1768401480721,1.977,939.74,936.72,2.620663]
[1768401480722,0.76387611,938.72,936.72,2.620663]
[1768401480922,0.76387611,938.71,936.71,2.620663]
[1768401481123,0.76387611,938.7,936.71,2.620663]
[1768401481322,0.76387611,938.69,936.69,2.620663]
[1768401481522,0.76387611,938.68,936.69,2.620663]
[1768401481726,0.76387611,938.67,936.69,2.620663]
[1768401482023,0.76387611,938.66,936.68,2.620663]
[1768401482226,0.76387611,938.65,936.68,2.620663]
[1768401482526,0.76387611,938.64,936.68,2.620663]
[1768401482725,0.76387611,938.63,936.68,2.620663]
[1768401482926,0.76387611,938.63,936.35,3.6689282]
[1768401482927,0.76387611,938.62,936.67,2.620663]
[1768401483122,0.76387611,938.61,936.67,2.620663]
[1768401483322,0.76387611,938.6,936.67,2.620663]
[1768401483523,0.76387611,938.59,936.66,2.620663]
[1768401483728,0.76387611,938.58,936.66,2.620663]
[1768401483926,0.0107464,939.56,936.82,2.620663]
[1768401484131,0.76404089,939.55,936.82,2.620663]
[1768401484333,0.76404089,939.54,936.82,2.620663]
[1768401484530,0.76404089,939.53,936.91,2.620663]
[1768401484834,0.76404089,939.52,936.91,2.620663]
[1768401485030,0.76404089,939.51,937.01,2.620663]
[1768401485230,0.76404089,939.5,937.01,2.620663]
[1768401485430,0.76404089,939.49,937.03,2.620663]
[1768401485730,0.76404089,939.48,937.03,2.620663]
[1768401485933,0.76404089,939.47,937.0,2.620663]
[1768401486230,0.76404089,939.46,937.0,2.620663]
[1768401486431,0.76404089,939.45,937.01,2.620663]
[1768401486634,0.76404089,939.44,937.01,2.620663]
[1768401486835,0.76404089,939.43,937.01,2.620663]
[1768401487030,0.76404089,939.42,937.02,2.620663]
[1768401487232,0.76404089,939.41,937.02,2.620663]
[1768401487435,0.76404089,939.4,937.02,2.620663]
[1768401487634,0.76404089,939.39,937.04,2.620663]
[1768401487836,0.76404089,939.38,937.04,2.620663]
[1768401488036,0.76404089,939.37,937.04,2.620663]
[1768401488338,0.76404089,939.36,937.04,2.620663]
[1768401488633,0.76404089,939.35,937.05,2.620663]
[1768401488838,0.76404089,939.34,937.05,2.620663]
[1768401489038,0.76404089,939.33,937.05,2.620663]
[1768401489334,0.76404089,939.32,937.05,2.620663]
[1768401489534,0.76404089,939.31,937.05,2.620663]
[1768401489834,0.76404089,939.3,937.05,2.620663]
[1768401490036,1.977,939.74,937.05,2.620663]
[1768401490037,0.76404089,939.29,937.05,2.620663]
[1768401490233,0.76404089,939.28,937.05,2.620663]
[1768401490435,0.76404089,939.27,937.05,2.620663]
[1768401490632,1.977,939.74,937.21,2.620663]
[1768401490633,0.76404089,939.26,937.21,2.620663]
[1768401490833,0.76404089,939.25,937.21,2.620663]
[1768401491037,0.76404089,939.24,937.21,2.620663]
[1768401491337,0.76404089,939.23,937.21,2.620663]
[1768401491538,0.76404089,939.22,937.21,2.620663]
[1768401491736,0.76404089,939.21,937.22,2.620663]
[1768401491936,0.76404089,939.2,937.22,2.620663]
[1768401492235,0.76404089,939.19,937.22,2.620663]
[1768401492438,0.76404089,939.18,937.22,2.620663]
[1768401492635,0.76404089,939.17,937.27,2.620663]
[1768401492834,0.76404089,939.16,937.27,2.620663]
[1768401493038,0.76404089,939.15,937.27,2.620663]
[1768401493337,0.76404089,939.14,937.27,2.620663]
[1768401493534,0.76404089,939.13,937.27,2.620663]
[1768401493736,0.76404089,939.12,937.27,2.620663]
[1768401493936,0.76404089,939.11,937.27,2.620663]
[1768401494137,0.76404089,939.1,937.27,2.620663]
[1768401494337,0.76404089,939.09,937.37,2.620663]
[1768401494537,0.76404089,939.08,937.37,2.620663]
[1768401494739,1.977,939.74,937.4,2.620663]
[1768401494938,0.76382179,939.73,937.4,2.620663]
[1768401495141,0.76382179,939.72,937.4,2.620663]
[1768401495342,0.76382179,939.71,937.45,2.620663]
[1768401495642,1.977,939.74,937.45,2.620663]
[1768401495643,0.76382179,939.7,937.45,2.620663]
[1768401495938,0.76382179,939.69,937.43,2.620663]
[1768401496139,0.76382179,939.68,937.43,2.620663]
[1768401496340,0.7636554,939.67,937.43,2.620663]
[1768401496541,0.7636554,939.66,937.43,2.620663]
[1768401496842,0.7636554,939.65,937.49,2.620663]
[1768401497039,0.7636554,939.64,937.49,2.620663]
[1768401497243,0.7636554,939.63,937.49,2.620663]
[1768401497542,0.7636554,939.62,937.47,2.620663]
[1768401497743,0.7636554,939.61,937.47,2.620663]
[1768401497943,0.7636554,939.6,937.48,2.620663]
[1768401498143,0.7636554,939.59,937.48,2.620663]
[1768401498442,0.7636554,939.58,937.57,2.620663]
[1768401498741,0.7636554,939.57,937.57,2.620663]
[1768401498938,0.7636554,939.56,937.67,2.620663]
[1768401499140,0.7636554,939.55,937.67,2.620663]
[1768401499343,0.7636554,939.54,937.67,2.620663]
[1768401499544,0.7636554,939.53,937.65,2.620663]
[1768401499742,0.7636554,939.52,937.65,2.620663]
[1768401499945,0.7636554,939.51,937.62,2.620663]
[1768401500242,0.7636554,939.5,937.62,2.620663]
[1768401500445,0.7636554,939.49,937.58,2.620663]
[1768401500640,0.7636554,939.48,937.58,2.620663]
[1768401500842,0.7636554,939.47,937.58,2.620663]
[1768401501145,0.7636554,939.46,937.58,2.620663]
[1768401501446,0.7636554,939.45,937.57,2.620663]
[1768401501640,0.7636554,939.44,937.57,2.620663]
[1768401501855,0.7636554,939.43,937.3,2.620663]
[1768401502041,0.7636554,939.42,937.3,2.620663]
[1768401502241,0.7636554,939.41,937.3,2.620663]
[1768401502544,0.7636554,939.4,937.29,2.620663]
[1768401502745,0.7636554,939.39,937.29,2.620663]
[1768401503044,0.7636554,939.38,937.27,2.620663]
[1768401503242,0.7636554,939.37,937.27,2.620663]
[1768401503545,0.7636554,939.36,937.38,2.620663]
[1768401503745,0.7636554,939.35,937.38,2.620663]
[1768401503946,0.7636554,939.34,937.38,2.620663]
[1768401504143,0.7636554,939.33,937.38,2.620663]
[1768401504347,0.7636554,939.32,937.38,2.620663]
[1768401504542,0.7636554,939.32,937.04,3.6689282]
[1768401504543,0.7636554,939.31,937.37,2.620663]
[1768401504742,0.7636554,939.3,937.37,2.620663]
[1768401504947,0.7636554,939.29,937.37,2.620663]
[1768401505145,0.7636554,939.28,937.37,2.620663]
[1768401505447,0.7636554,939.27,937.37,2.620663]
[1768401505749,0.7636554,939.26,937.23,2.620663]
[1768401506048,0.7636554,939.25,937.22,2.620663]
[1768401506246,0.7636554,939.24,937.22,2.620663]
[1768401506447,0.7636554,939.23,937.22,2.620663]
[1768401506647,0.7636554,939.22,937.22,2.620663]
[1768401506848,0.7636554,939.21,937.22,2.620663]
[1768401507045,0.7636554,939.2,937.23,2.620663]
[1768401507247,0.7636554,939.19,937.23,2.620663]
[1768401507544,0.7636554,939.18,937.23,2.620663]
[1768401507847,0.7636554,939.17,937.26,2.620663]
[1768401508144,0.7636554,939.16,937.26,2.620663]
[1768401508344,0.7636554,939.15,937.26,2.620663]
[1768401508544,0.7636554,939.14,937.26,2.620663]
[1768401508745,0.7636554,939.13,937.18,2.620663]
[1768401508948,0.7636554,939.12,937.06,2.620663]
[1768401509148,0.7636554,939.11,937.06,2.620663]
[1768401509349,0.7636554,939.1,937.06,2.620663]
[1768401509549,0.7636554,939.09,937.03,2.620663]
[1768401509751,0.7636554,939.08,937.03,2.620663]
[1768401510046,0.7636554,939.07,937.03,2.620663]
[1768401510253,0.7636554,939.06,937.03,2.620663]
[1768401510450,0.7636554,939.05,937.06,2.620663]
[1768401510651,0.7636554,939.04,937.06,2.620663]
[1768401510847,0.7636554,939.03,937.06,2.620663]
[1768401511051,0.7636554,939.02,937.06,2.620663]
[1768401511252,0.7636554,939.01,937.06,2.620663]
[1768401511450,0.7636554,939.0,937.06,2.620663]
[1768401511748,0.7636554,938.99,937.07,2.620663]
[1768401512048,0.7636554,938.99,936.72,3.6689282]
[1768401512049,0.7636554,938.98,937.1,2.620663]
[1768401512252,1.667,939.17,937.1,2.620663]
[1768401512554,0.76364185,939.16,937.21,2.620663]
[1768401512753,0.76364185,939.15,937.21,2.620663]
[1768401512952,1.667,939.17,937.21,2.620663]
[1768401512953,0.76364185,939.14,937.21,2.620663]
[1768401513153,0.76364185,939.13,937.28,2.620663]
[1768401513354,0.76364185,939.12,937.28,2.620663]
[1768401513651,0.76364185,939.11,937.29,2.620663]
[1768401513850,1.667,939.17,937.29,2.620663]
[1768401514054,0.76354032,939.16,937.29,2.620663]
[1768401514255,0.76354032,939.15,937.29,2.620663]
[1768401514451,0.76354032,939.14,937.29,2.620663]
[1768401514658,0.76352045,939.13,937.29,2.620663]
[1768401514953,0.76352045,939.12,937.29,2.620663]
[1768401515159,1.667,939.17,937.34,2.620663]
[1768401515453,0.76348135,939.16,937.34,2.620663]
[1768401515757,0.7634954,939.15,937.31,2.620663]
[1768401516056,1.667,939.17,937.31,2.620663]
[1768401516252,0.76351661,939.16,937.33,2.620663]
[1768401516452,1.667,939.17,937.33,2.620663]
[1768401516753,0.76351753,939.16,937.34,2.620663]
[1768401517057,1.667,939.17,937.34,2.620663]
[1768401517354,1.667,939.17,937.35,2.620663]
[1768401517753,1.667,939.17,937.47,2.620663]
[1768401518855,1.667,939.17,937.5,2.620663]
[1768401520461,1.667,939.17,937.49,2.620663]
[1768401521458,1.667,939.17,937.48,2.620663]
[1768401521961,1.667,939.17,937.43,2.620663]
[1768401522564,1.667,939.17,937.44,2.620663]
[1768401523661,1.667,939.17,937.1,3.6689282]
[1768401523662,1.667,939.17,937.45,2.620663]
[1768401524663,1.667,939.17,937.52,2.620663]
[1768401525062,1.667,939.17,937.62,2.620663]
[1768401525765,1.667,939.17,937.61,2.620663]
[1768401526164,1.667,939.17,937.65,2.620663]
[1768401526761,1.667,939.17,937.7,2.620663]
[1768401527263,1.667,939.17,937.71,2.620663]
[1768401528268,1.667,939.17,937.84,2.620663]
[1768401528762,1.667,939.17,938.2,2.620663]
[1768401529263,0.3106393,939.17,938.28,2.620663]
[1768401529866,0.3106393,939.17,938.4,2.620663]
[1768401530462,0.3106393,939.17,938.29,2.620663]
[1768401530662,0.3106393,939.17,938.19,2.620663]
[1768401531067,0.3106393,939.17,938.08,2.620663]
[1768401531469,0.3106393,939.17,938.05,2.620663]
[1768401532463,0.3106393,939.17,938.02,2.620663]
[1768401533164,0.3106393,939.17,937.98,2.620663]
[1768401533468,0.3106393,939.17,937.96,2.620663]
[1768401534165,0.3106393,939.17,937.97,2.620663]
[1768401534563,0.3106393,939.17,937.95,2.620663]
[1768401535067,0.3106393,939.17,937.96,2.620663]
[1768401535668,0.3106393,939.17,938.08,2.620663]
[1768401536171,0.3106393,939.17,938.05,2.620663]
[1768401536669,0.3106393,939.17,938.1,2.620663]
[1768401537167,0.3106393,939.17,938.0,2.620663]
[1768401537663,0.3106393,939.17,937.98,2.620663]
[1768401538466,0.3106393,939.17,937.97,2.620663]
[1768401538967,0.3106393,939.17,937.74,2.620663]
[1768401539571,0.3106393,939.17,937.7,2.620663]
[1768401540671,0.3106393,939.17,937.36,3.6689282]
[1768401540672,0.3106393,939.17,937.73,2.620663]
[1768401541072,0.3106393,939.17,937.87,2.620663]
[1768401542771,0.3106393,939.17,937.89,2.620663]
[1768401543270,0.3106393,939.17,937.9,2.620663]
[1768401543673,0.3106393,939.17,937.56,3.6689282]
[1768401543674,0.3106393,939.17,937.93,2.620663]
[1768401544676,0.3106393,939.17,937.96,2.620663]
[1768401545775,0.3106393,939.17,937.95,2.620663]
[1768401546279,0.3106393,939.17,937.94,2.620663]
[1768401547481,0.3106393,939.17,938.07,2.620663]
[1768401548383,0.3106393,939.17,938.06,2.620663]
[1768401550383,0.3106393,939.17,938.05,2.620663]
[1768401550882,0.3106393,939.17,938.04,2.620663]
[1768401551380,0.3106393,939.17,938.01,2.620663]
[1768401551982,0.3106393,939.17,937.99,2.620663]
[1768401552486,0.3106393,939.17,938.0,2.620663]
[1768401553090,0.3106393,939.17,937.99,2.620663]
[1768401553691,0.3106393,939.17,937.92,2.620663]
[1768401554591,0.3106393,939.17,937.59,3.6689282]
[1768401554592,0.3106393,939.17,937.89,2.620663]
[1768401554787,0.3106393,939.17,937.78,2.620663]
[1768401555087,0.3106393,939.17,937.59,2.620663]
[1768401556489,0.3106393,939.17,937.62,2.620663]
[1768401557691,0.3106393,939.17,937.65,2.620663]
[1768401558296,0.01027221,940.13,937.65,2.620663]
[1768401558597,0.76080545,940.12,937.67,2.620663]
[1768401558794,0.76080545,940.11,937.67,2.620663]
[1768401558991,0.76080545,940.1,937.67,2.620663]
[1768401559191,0.76080545,940.09,937.67,2.620663]
[1768401559390,0.76080545,940.08,937.67,2.620663]
[1768401559692,0.76080545,940.07,937.69,2.620663]
[1768401559895,0.76080545,940.06,937.69,2.620663]
[1768401560097,0.76080545,940.05,937.69,2.620663]
[1768401560396,0.76080545,940.04,937.69,2.620663]
[1768401560594,0.76080545,940.03,937.71,2.620663]
[1768401560793,0.76080545,940.02,937.71,2.620663]
[1768401560990,0.76080545,940.01,937.71,2.620663]
[1768401561194,0.76080545,940.0,937.72,2.620663]
[1768401561493,0.76080545,939.99,937.72,2.620663]
[1768401561695,0.76080545,939.98,937.84,2.620663]
[1768401561897,0.00753688,940.94,937.84,2.620663]
[1768401562098,0.76033332,940.93,937.84,2.620663]
[1768401562393,0.76033332,940.92,938.02,2.620663]
[1768401562594,0.76033332,940.91,938.02,2.620663]
[1768401562796,0.76033332,940.9,938.02,2.620663]
[1768401562998,0.76033332,940.89,938.02,2.620663]
[1768401563198,0.76033332,940.88,938.03,2.620663]
[1768401563497,0.76033332,940.87,938.03,2.620663]
[1768401563696,0.76033332,940.86,938.03,2.620663]
[1768401563897,0.76033332,940.85,938.03,2.620663]
[1768401564101,0.76033332,940.84,938.03,2.620663]
[1768401564297,0.76033332,940.83,938.18,2.620663]
[1768401564495,0.76033332,940.82,938.18,2.620663]
[1768401564699,0.76033332,940.81,938.18,2.620663]
[1768401564898,0.76033332,940.8,938.18,2.620663]
[1768401565095,0.76033332,940.79,938.18,2.620663]
[1768401565300,0.76033332,940.78,938.19,2.620663]
[1768401565500,2.495,940.92,938.19,2.620663]
[1768401565501,0.76033332,940.77,938.19,2.620663]
[1768401565697,0.76033332,940.76,938.19,2.620663]
[1768401565896,0.76033332,940.75,938.19,2.620663]
[1768401566100,0.76033332,940.74,938.19,2.620663]
[1768401566301,0.76144766,940.73,938.21,2.620663]
[1768401566597,0.76144766,940.72,938.21,2.620663]
[1768401566798,0.76144766,940.71,938.2,2.620663]
[1768401567001,0.76144766,940.7,938.2,2.620663]
[1768401567296,2.495,940.92,938.21,2.620663]
[1768401567297,0.76144766,940.69,938.21,2.620663]
[1768401567597,0.76144766,940.68,938.07,2.620663]
[1768401567896,0.76144766,940.67,938.07,2.620663]
[1768401568096,2.495,940.92,938.07,2.620663]
[1768401568097,0.76144766,940.66,938.07,2.620663]
[1768401568301,0.76144766,940.65,938.09,2.620663]
[1768401568501,0.76144766,940.64,938.09,2.620663]
[1768401568700,0.76144766,940.63,938.09,2.620663]
[1768401568902,0.76144766,940.62,938.09,2.620663]
[1768401569097,0.76144766,940.61,938.09,2.620663]
[1768401569400,0.76144766,940.6,938.13,2.620663]
[1768401569696,0.76144766,940.59,938.13,2.620663]
[1768401570000,0.76144766,940.58,938.12,2.620663]
[1768401570200,0.76144766,940.57,938.12,2.620663]
[1768401570500,2.495,940.92,937.27,5.241326]
[1768401570501,0.76144766,940.56,938.16,2.620663]
[1768401570695,0.76144766,940.55,938.16,2.620663]
[1768401570902,0.76144766,940.54,938.18,2.620663]
[1768401571100,0.76144766,940.53,938.18,2.620663]
[1768401571301,0.76144766,940.52,938.21,2.620663]
[1768401571497,0.76144766,940.51,938.21,2.620663]
[1768401571798,0.76144766,940.5,938.21,2.620663]
[1768401571997,0.76144766,940.49,938.21,2.620663]
[1768401572197,0.76144766,940.48,938.21,2.620663]
[1768401572498,0.76144766,940.47,938.23,2.620663]
[1768401572698,0.76144766,940.46,938.23,2.620663]
[1768401572902,0.76144766,940.45,938.14,2.620663]
[1768401573102,0.76144766,940.44,938.04,2.620663]
[1768401573397,0.76144766,940.43,938.04,2.620663]
[1768401573598,0.76144766,940.42,937.98,2.620663]
[1768401573901,0.76144766,940.41,937.98,2.620663]
[1768401574098,0.7650992,940.4,937.92,2.620663]
[1768401574398,0.7650992,940.39,937.92,2.620663]
[1768401574596,0.7650992,940.38,937.89,2.620663]
[1768401574799,0.7650992,940.37,937.89,2.620663]
[1768401575001,0.7650992,940.36,937.89,2.620663]
[1768401575199,0.7650992,940.35,937.9,2.620663]
[1768401575400,0.7650992,940.34,937.9,2.620663]
[1768401575600,0.7650992,940.33,937.89,2.620663]
[1768401575802,0.7650992,940.32,937.89,2.620663]
[1768401575999,0.7650992,940.31,937.89,2.620663]
[1768401576198,0.7650992,940.3,937.9,2.620663]
[1768401576407,0.7650992,940.29,937.9,2.620663]